bitfinex-derivatives/quotes_BTCF0:USTF0_20210104
["timestamp","ask_amount","ask_price","bid_price","bid_amount"]
[1609745299621,0.2824,32219.0,32140.0,4.6627]
[1609745299822,0.2824,32219.0,32140.0,6.70994646]
[1609745300120,0.2824,32219.0,32140.0,4.6627]
[1609745300620,0.2824,32219.0,32183.0,0.14033567]
[1609745302620,0.14033567,32205.0,32203.0,0.14033567]
[1609745303720,0.14033567,32205.0,32181.0,3.6407]
[1609745303920,0.14033567,32205.0,32179.0,2.05779752]
[1609745304121,0.14033567,32205.0,32166.0,2.05457379]
[1609745304624,5.2824,32219.0,32195.0,0.14033567]
[1609745305225,1.0,32202.0,32195.0,0.14033567]
[1609745306725,1.0,32202.0,32201.0,0.14033567]
[1609745307225,1.0,32213.0,32201.0,0.14033567]
[1609745308227,1.0,32213.0,32202.0,0.5179]
[1609745308828,1.0,32213.0,32209.0,0.14033567]
[1609745309027,1.0,32213.0,32202.0,0.5179]
[1609745309228,1.0,32207.0,32202.0,0.5179]
[1609745310730,1.0,32207.0,32206.0,0.14033567]
[1609745310928,1.0,32207.0,32202.0,0.5179]
[1609745311128,0.2824,32219.0,32202.0,0.5179]
[1609745311528,0.2824,32219.0,32202.0,0.0001]
[1609745312733,0.14033567,32203.0,32202.0,0.0001]
[1609745313335,0.2824,32219.0,32202.0,0.0001]
[1609745313734,0.2824,32219.0,32201.0,0.14033567]
[1609745313935,0.2824,32219.0,32208.0,4.3202]
[1609745314735,0.2824,32219.0,32218.0,0.14033567]
[1609745314936,0.2824,32219.0,32208.0,4.3202]
[1609745315338,0.12369,32257.0,32209.0,2.05503225]
[1609745316539,0.12369,32257.0,32208.0,4.3202]
[1609745317241,0.14033567,32236.0,32235.0,0.14033567]
[1609745318044,0.13808,32264.0,32217.0,2.05880741]
[1609745318445,0.13808,32264.0,32223.0,2.0584529]
[1609745318643,0.11567,32271.0,32223.0,2.0584529]
[1609745319144,0.14033567,32232.0,32223.0,2.0584529]
[1609745319345,1.0,32242.0,32223.0,2.0584529]
[1609745320848,1.0,32242.0,32226.0,2.05791542]
[1609745321151,0.11567,32271.0,32241.0,0.14033567]
[1609745321549,0.11567,32271.0,32241.0,4.76073567]
[1609745321948,1.0,32322.0,32241.0,4.76073567]
[1609745323149,0.14033567,32277.0,32274.0,0.14033567]
[1609745323350,1.0,32280.0,32274.0,0.14033567]
[1609745324452,0.0464,32280.0,32274.0,0.14033567]
[1609745324651,0.0464,32280.0,32232.0,2.05799494]
[1609745324850,4.5877,32320.0,32249.0,4.7458]
[1609745327351,0.14033567,32276.0,32274.0,0.14033567]
[1609745327752,0.14033567,32276.0,32249.0,4.7458]
[1609745327952,0.10897,32316.0,32249.0,4.7458]
[1609745328551,4.5877,32320.0,32249.0,4.7458]
[1609745329353,4.5877,32320.0,32280.0,0.14033567]
[1609745329558,0.14528,32323.0,32280.0,0.14033567]
[1609745329753,1.0,32351.0,32280.0,0.14033567]
[1609745330752,1.0,32313.0,32297.0,1.0]
[1609745331357,0.14033567,32298.0,32297.0,1.0]
[1609745332854,0.14033567,32298.0,32258.0,2.02308164]
[1609745333054,0.14033567,32298.0,32252.0,2.02052829]
[1609745333254,0.12621,32299.0,32252.0,2.02052829]
[1609745335257,0.12621,32299.0,32251.0,0.14033567]
[1609745335258,0.14033567,32253.0,32251.0,0.14033567]
[1609745335657,0.13883,32291.0,32251.0,0.14033567]
[1609745336460,0.12428,32313.0,32245.0,4.5689]
[1609745336659,0.09849,32301.0,32245.0,4.5689]
[1609745337260,0.14033567,32246.0,32245.0,4.5689]
[1609745337460,0.14033567,32246.0,32228.0,2.01309156]
[1609745338662,3.6775,32282.0,32228.0,2.01309156]
[1609745338863,0.09809,32285.0,32228.0,2.01309156]
[1609745339063,0.09809,32285.0,32225.0,4.912]
[1609745339263,0.09809,32285.0,32266.0,0.14033567]
[1609745339465,0.10312,32292.0,32266.0,0.14033567]
[1609745340063,0.10312,32292.0,32252.0,3.9438]
[1609745340264,0.2726,32300.0,32252.0,3.9438]
[1609745340964,4.1863,32304.0,32223.0,4.6552]
[1609745341364,0.14033567,32224.0,32223.0,4.6552]
[1609745341765,0.10637,32259.0,32217.0,2.00716308]
[1609745343368,0.14033567,32263.0,32258.0,0.14033567]
[1609745343568,0.14033567,32263.0,32217.0,2.00716308]
[1609745343770,0.14033567,32263.0,32244.0,3.5204]
[1609745343969,1.0,32298.0,32244.0,3.5204]
[1609745344770,0.289,32300.0,32244.0,3.5204]
[1609745346771,1.0,32249.0,32244.0,3.5204]
[1609745347172,1.0,32249.0,32232.0,1.0]
[1609745347373,0.8143,32249.0,32248.0,0.14033567]
[1609745347574,0.10988,32291.0,32248.0,0.14033567]
[1609745347972,0.10988,32291.0,32218.0,4.8451]
[1609745348673,0.10988,32291.0,32216.0,2.00657627]
[1609745348873,0.289,32300.0,32231.0,4.0576]
[1609745349273,1.12428,32313.0,32231.0,4.0576]
[1609745349473,1.12428,32313.0,32232.0,0.1771]
[1609745349673,1.0,32278.0,32262.0,1.0]
[1609745350474,1.0,32278.0,32262.0,0.8038]
[1609745350873,0.12523,32278.0,32232.0,0.1771]
[1609745351374,0.14033567,32264.0,32251.0,0.14033567]
[1609745352376,0.11708,32276.0,32251.0,0.14033567]
[1609745352579,0.14333,32286.0,32251.0,0.14033567]
[1609745352776,1.0,32290.0,32251.0,0.13521]
[1609745352976,0.15204,32295.0,32251.0,0.13521]
[1609745353378,0.14033567,32253.0,32252.0,0.14033567]
[1609745353578,0.15204,32295.0,32252.0,0.14033567]
[1609745355181,0.15204,32295.0,32251.0,0.13521]
[1609745355381,0.14033567,32252.0,32251.0,0.13521]
[1609745356481,0.13422,32297.0,32251.0,0.13521]
[1609745357481,0.14033567,32286.0,32251.0,0.13521]
[1609745357883,0.14033567,32286.0,32242.0,4.3471]
[1609745358481,0.14033567,32286.0,32250.0,2.03325]
[1609745358881,1.0,32272.0,32255.0,1.0]
[1609745359483,1.0,32272.0,32271.0,0.14033567]
[1609745359783,0.85966433,32272.0,32271.0,0.14033567]
[1609745360082,1.0,32272.0,32271.0,0.14033567]
[1609745360784,1.0,32272.0,32261.0,2.03230827]
[1609745361385,1.0,32272.0,32266.0,0.14033567]
[1609745362488,5.1423,32308.0,32266.0,0.14033567]
[1609745363390,5.1423,32308.0,32257.0,2.04357208]
[1609745363391,5.1423,32308.0,32289.0,0.14033567]
[1609745363588,0.14911,32315.0,32289.0,0.14033567]
[1609745363990,0.14911,32315.0,32257.0,2.04357208]
[1609745364590,1.0,32287.0,32270.0,2.047906]
[1609745365190,1.0,32287.0,32270.0,1.047906]
[1609745365392,0.14033567,32271.0,32259.0,2.05550296]
[1609745365792,0.14033567,32271.0,32241.0,2.24248464]
[1609745366892,0.14033567,32271.0,32246.0,2.24213643]
[1609745367091,1.0,32289.0,32246.0,2.24213643]
[1609745367292,3.13113202,32319.0,32246.0,2.24213643]
[1609745367491,5.0,32269.0,32262.0,0.14033567]
[1609745367692,1.0,32309.0,32262.0,0.14033567]
[1609745367892,1.14541,32309.0,32262.0,0.14033567]
[1609745368291,1.14541,32309.0,32246.0,2.24213643]
[1609745368492,1.14541,32309.0,32253.0,2.24341695]
[1609745368692,1.14541,32309.0,32267.0,2.25218676]
[1609745369194,1.14541,32309.0,32267.0,2.38077676]
[1609745369594,0.14033567,32268.0,32267.0,2.38077676]
[1609745369995,0.12457,32302.0,32267.0,0.12859]
[1609745371498,0.14033567,32289.0,32281.0,0.14033567]
[1609745371698,1.0,32295.0,32281.0,0.14033567]
[1609745371898,1.0,32295.0,32281.0,0.24502567]
[1609745372298,1.0,32295.0,32281.0,0.10469]
[1609745372799,0.61644739,32295.0,32294.0,2.26182848]
[1609745373198,5.123,32328.0,32294.0,2.26182848]
[1609745373398,5.123,32328.0,32294.0,4.8567776]
[1609745373598,1.0,32351.0,32299.0,0.14033567]
[1609745374199,1.0,32351.0,32303.0,2.26130249]
[1609745375000,0.19202641,32344.0,32297.0,2.63818624]
[1609745375199,1.0,32318.0,32302.0,1.0]
[1609745375602,0.14033567,32311.0,32309.0,0.14033567]
[1609745375802,1.0,32318.0,32309.0,0.14033567]
[1609745376204,1.0,32318.0,32302.0,1.0]
[1609745376804,1.0,32318.0,32316.0,2.07918761]
[1609745377206,0.13662,32332.0,32316.0,0.08028761]
[1609745377605,0.14033567,32317.0,32316.0,0.08028761]
[1609745378205,0.13662,32332.0,32314.0,0.14124]
[1609745380205,0.14033567,32315.0,32314.0,0.14124]
[1609745381904,0.14033567,32315.0,32303.0,2.26276684]
[1609745382305,0.14033567,32304.0,32301.0,2.26274938]
[1609745383506,0.25929567,32304.0,32301.0,1.26274938]
[1609745383708,6.0,32302.0,32301.0,1.26274938]
[1609745385009,5.85966433,32302.0,32293.0,2.45176422]
[1609745385209,5.85966433,32302.0,32286.0,2.45278747]
[1609745385408,1.0,32302.0,32286.0,2.45278747]
[1609745386211,1.0,32302.0,32288.0,0.14033567]
[1609745386412,1.0,32302.0,32288.0,0.29895567]
[1609745386611,0.2619,32302.0,32288.0,0.29895567]
[1609745386812,0.2619,32302.0,32289.0,2.45152633]
[1609745387010,0.13937,32318.0,32289.0,2.45152633]
[1609745387210,0.11004,32325.0,32289.0,2.45152633]
[1609745387411,0.11004,32325.0,32301.0,2.07410477]
[1609745387612,3.9141,32357.0,32301.0,2.07410477]
[1609745388213,0.14033567,32302.0,32301.0,2.07410477]
[1609745389016,5.0,32316.0,32301.0,2.07410477]
[1609745389414,0.13336,32323.0,32301.0,2.07410477]
[1609745390314,0.14033567,32302.0,32301.0,2.07410477]
[1609745391518,1.0,32306.0,32299.0,2.44949392]
[1609745391920,1.0,32306.0,32299.0,2.56615392]
[1609745392521,1.0,32306.0,32300.0,2.07032345]
[1609745393320,0.12577,32332.0,32300.0,2.07032345]
[1609745393521,0.12577,32332.0,32305.0,2.06764453]
[1609745394224,0.14033567,32306.0,32305.0,2.06764453]
[1609745394824,0.14033567,32306.0,32304.0,2.25583965]
[1609745395224,0.14033567,32306.0,32303.0,2.06785487]
[1609745395423,0.14033567,32306.0,32305.0,1.0]
[1609745396625,1.0,32321.0,32305.0,1.0]
[1609745397428,1.0,32309.0,32300.0,2.06843466]
[1609745397927,1.0,32309.0,32299.0,0.11666]
[1609745398127,1.0,32309.0,32296.0,2.06745728]
[1609745398326,1.0,32309.0,32302.0,0.14033567]
[1609745398726,1.0,32309.0,32296.0,2.06745728]
[1609745399129,0.71247998,32309.0,32299.0,2.06725415]
[1609745399327,0.12872,32324.0,32299.0,2.06725415]
[1609745399727,0.12872,32324.0,32298.0,2.06723088]
[1609745399926,0.12872,32324.0,32295.0,2.25518635]
[1609745400127,0.12872,32324.0,32297.0,2.06722821]
[1609745400327,0.12872,32324.0,32305.0,0.14033567]
[1609745400829,0.12872,32324.0,32299.0,0.587055]
[1609745401430,6.0,32300.0,32291.0,2.25452495]
[1609745402230,0.14033567,32292.0,32291.0,2.25452495]
[1609745403132,6.0,32300.0,32291.0,2.25452495]
[1609745403533,4.166,32358.0,32291.0,2.25452495]
[1609745403734,4.166,32358.0,32289.0,0.15192]
[1609745403933,4.166,32358.0,32290.0,0.1771]
[1609745404334,0.14033567,32292.0,32290.0,0.1771]
[1609745404535,4.166,32358.0,32290.0,0.1771]
[1609745404735,0.11651,32326.0,32289.0,0.15192]
[1609745405337,0.11651,32326.0,32290.0,2.26137857]
[1609745406036,0.11651,32326.0,32289.0,2.41331344]
[1609745406236,0.11651,32326.0,32293.0,0.14033567]
[1609745407539,1.0,32309.0,32293.0,1.14033567]
[1609745407744,1.0,32309.0,32293.0,3.26134912]
[1609745408240,0.14033567,32294.0,32293.0,3.26134912]
[1609745408438,0.14033567,32294.0,32293.0,3.45380935]
[1609745409138,1.0,32309.0,32293.0,3.26594044]
[1609745409439,0.11651,32326.0,32293.0,2.26594044]
[1609745409842,4.9685,32337.0,32291.0,2.265983]
[1609745410242,0.14033567,32292.0,32291.0,2.265983]
[1609745410645,0.14033567,32292.0,32289.0,2.60790895]
[1609745411446,1.0,32290.0,32289.0,0.15192]
[1609745411646,1.0,32290.0,32282.0,2.26750031]
[1609745412347,0.40293567,32290.0,32282.0,2.40783598]
[1609745412645,0.10145,32312.0,32282.0,2.26750031]
[1609745413546,0.10145,32312.0,32279.0,2.45645867]
[1609745413947,0.10145,32312.0,32299.0,2.07986187]
[1609745414445,0.14033567,32300.0,32299.0,2.07986187]
[1609745414646,0.14033567,32300.0,32298.0,1.8883781]
[1609745415250,0.14033567,32300.0,32289.0,2.27018474]
[1609745415450,1.0,32346.0,32290.0,5.0977]
[1609745415850,1.0,32346.0,32297.0,2.27251606]
[1609745416251,1.0,32346.0,32297.0,2.40152606]
[1609745416453,0.14033567,32339.0,32328.0,0.14033567]
[1609745416652,1.92824769,32392.0,32328.0,0.14033567]
[1609745417055,1.93875332,32408.0,32337.0,4.0655]
[1609745418355,0.14033567,32382.0,32343.0,0.14033567]
[1609745418555,1.93875332,32408.0,32343.0,0.14033567]
[1609745418756,1.94372914,32423.0,32343.0,0.14033567]
[1609745418955,1.94372914,32423.0,32363.0,4.3045]
[1609745419158,1.9570784,32449.0,32363.0,4.3045]
[1609745419356,1.9570784,32449.0,32367.0,2.45400996]
[1609745419555,1.96160176,32458.0,32370.0,2.26523996]
[1609745420160,1.96160176,32458.0,32388.0,4.5607]
[1609745420356,0.14033567,32432.0,32402.0,0.14033567]
[1609745420556,0.14033567,32432.0,32412.0,0.5909]
[1609745420956,1.96227364,32461.0,32412.0,0.5909]
[1609745421156,1.96227364,32461.0,32422.0,3.8087]
[1609745422157,1.96227364,32461.0,32402.0,0.14033567]
[1609745422357,0.14033567,32403.0,32402.0,0.14033567]
[1609745422557,0.14018,32441.0,32402.0,0.14033567]
[1609745422759,0.1187,32420.0,32385.0,3.4976]
[1609745424261,0.11255,32431.0,32385.0,3.4976]
[1609745424461,0.14018,32441.0,32378.0,2.24573662]
[1609745424662,0.14672,32461.0,32410.0,3.5391]
[1609745426362,0.14672,32461.0,32427.0,0.14033567]
[1609745427264,0.2772,32496.0,32410.0,3.5391]
[1609745427664,4.5822,32495.0,32410.0,3.5391]
[1609745428266,0.2728,32494.0,32410.0,3.5391]
[1609745428466,0.14033567,32411.0,32410.0,3.5391]
[1609745428667,0.14033567,32411.0,32383.0,2.04215741]
[1609745428868,0.14033567,32411.0,32377.0,2.04316394]
[1609745429269,0.14863,32422.0,32377.0,2.04316394]
[1609745429470,0.14863,32422.0,32394.0,4.6797]
[1609745429669,0.2704,32462.0,32394.0,4.6797]
[1609745429869,0.2704,32462.0,32377.0,2.04316394]
[1609745430069,0.2704,32462.0,32409.0,4.264]
[1609745430269,0.2704,32462.0,32377.0,2.04316394]
[1609745430471,0.14033567,32450.0,32443.0,0.14033567]
[1609745430669,0.14033567,32450.0,32412.0,4.4337]
[1609745431470,0.26698567,32450.0,32412.0,4.4337]
[1609745432471,0.12665,32450.0,32412.0,4.4337]
[1609745433671,0.1269,32459.0,32412.0,4.4337]
[1609745434372,0.1269,32459.0,32433.0,0.14033567]
[1609745434571,0.1269,32459.0,32370.0,2.01895697]
[1609745434771,1.0,32436.0,32426.0,3.9414]
[1609745435171,1.0,32436.0,32420.0,1.0]
[1609745436372,0.14033567,32421.0,32420.0,1.0]
[1609745436773,1.14033567,32421.0,32403.0,5.0036]
[1609745437374,1.14033567,32421.0,32400.0,1.0]
[1609745438485,0.14033567,32402.0,32400.0,1.0]
[1609745438673,0.14033567,32402.0,32390.0,4.2224]
[1609745439174,0.09856,32430.0,32390.0,4.2224]
[1609745439375,1.0,32485.0,32390.0,4.2224]
[1609745439576,1.0,32485.0,32382.0,0.0075]
[1609745439776,1.0,32485.0,32389.0,4.721]
[1609745440376,1.0,32485.0,32399.0,0.14033567]
[1609745440780,1.0,32476.0,32399.0,0.14033567]
[1609745440979,1.0,32476.0,32389.0,4.721]
[1609745441177,0.4149,32462.0,32389.0,4.721]
[1609745442281,0.12491,32462.0,32389.0,4.721]
[1609745442681,0.12491,32462.0,32394.0,0.25147567]
[1609745444586,0.14033567,32427.0,32394.0,0.11114]
[1609745446388,0.15006,32445.0,32394.0,0.11114]
[1609745446589,0.15006,32445.0,32432.0,0.14033567]
[1609745446790,0.10371,32453.0,32432.0,0.14033567]
[1609745446991,0.12491,32462.0,32432.0,0.14033567]
[1609745447391,1.0,32502.0,32432.0,0.14033567]
[1609745448592,1.0,32472.0,32456.0,1.0]
[1609745448790,1.1081,32472.0,32456.0,1.0]
[1609745450592,1.1081,32472.0,32446.0,4.8333]
[1609745450593,0.14033567,32457.0,32446.0,4.8333]
[1609745451595,0.1081,32472.0,32446.0,4.8333]
[1609745451795,0.1081,32472.0,32446.0,4.97683]
[1609745451996,0.1081,32472.0,32446.0,0.14353]
[1609745452597,0.14033567,32447.0,32446.0,0.14353]
[1609745452997,0.14033567,32447.0,32438.0,1.0]
[1609745454497,0.14033567,32447.0,32443.0,1.0]
[1609745456501,0.14033567,32447.0,32441.0,0.10952]
[1609745456701,0.13394,32460.0,32442.0,0.14033567]
[1609745456901,0.13394,32460.0,32441.0,0.10952]
[1609745457802,0.09989,32464.0,32441.0,0.10952]
[1609745458704,0.14033567,32442.0,32441.0,0.10952]
[1609745459304,0.14033567,32442.0,32388.0,1.98696392]
[1609745459506,0.14033567,32442.0,32387.0,3.5284]
[1609745460406,0.14033567,32442.0,32388.0,0.1771]
[1609745460608,0.14033567,32421.0,32418.0,0.14033567]
[1609745461007,0.1199,32434.0,32418.0,0.14033567]
[1609745461207,0.1199,32434.0,32418.0,4.33833567]
[1609745462007,0.12447,32445.0,32418.0,4.33833567]
[1609745462307,0.12447,32445.0,32418.0,0.14033567]
[1609745462507,1.0,32433.0,32418.0,0.14033567]
[1609745462709,1.0,32433.0,32427.0,0.14033567]
[1609745463108,1.0,32433.0,32417.0,0.09926]
[1609745464511,1.0,32429.0,32417.0,0.09926]
[1609745464712,0.14033567,32418.0,32417.0,0.23959567]
[1609745464911,0.14033567,32418.0,32417.0,0.09926]
[1609745466014,1.0,32429.0,32417.0,0.09926]
[1609745466516,1.0,32432.0,32417.0,0.09926]
[1609745466715,1.0,32432.0,32424.0,0.14033567]
[1609745467516,1.0,32432.0,32417.0,0.09926]
[1609745468118,1.0,32432.0,32416.0,0.41906]
[1609745468518,0.15307,32436.0,32403.0,0.356]
[1609745468718,0.14033567,32404.0,32403.0,0.356]
[1609745468920,0.14033567,32404.0,32402.0,4.3137]
[1609745469319,0.16107,32415.0,32402.0,4.3137]
[1609745470020,0.12447,32445.0,32402.0,4.3137]
[1609745470220,0.2941,32456.0,32402.0,4.3137]
[1609745470620,0.14033567,32425.0,32420.0,0.14033567]
[1609745471020,0.26324567,32425.0,32420.0,0.14033567]
[1609745471221,0.26324567,32425.0,32403.0,0.356]
[1609745472522,1.0,32404.0,32403.0,0.356]
[1609745472720,1.0,32404.0,32403.0,0.49633567]
[1609745472920,1.0,32404.0,32388.0,0.32338]
[1609745473520,1.14517,32404.0,32388.0,0.32338]
[1609745473720,1.14517,32404.0,32388.0,0.1771]
[1609745473922,0.85863428,32404.0,32388.0,0.1771]
[1609745474322,0.14517,32404.0,32388.0,0.1771]
[1609745474727,0.14517,32404.0,32391.0,0.14033567]
[1609745474728,0.14033567,32396.0,32391.0,0.14033567]
[1609745475123,0.14517,32404.0,32391.0,0.14033567]
[1609745475622,0.12741,32413.0,32391.0,0.14033567]
[1609745475823,0.12291,32425.0,32391.0,0.14033567]
[1609745476223,1.0,32423.0,32407.0,1.0]
[1609745476822,1.0,32423.0,32422.0,0.14033567]
[1609745477022,1.0,32423.0,32413.0,4.9166]
[1609745477422,1.13168,32423.0,32407.0,1.0]
[1609745478225,1.0,32408.0,32389.0,2.05081598]
[1609745478425,1.1476,32408.0,32395.0,2.05091407]
[1609745478825,1.1476,32408.0,32395.0,2.19124974]
[1609745479225,0.8610797,32408.0,32407.0,2.07082485]
[1609745479426,0.1476,32408.0,32407.0,2.07082485]
[1609745479825,0.13168,32423.0,32407.0,2.07082485]
[1609745480529,0.13168,32423.0,32407.0,4.32952564]
[1609745480727,0.14033567,32418.0,32415.0,0.14033567]
[1609745480926,0.14033567,32418.0,32407.0,4.32952564]
[1609745481129,0.14033567,32418.0,32415.0,2.45466189]
[1609745482029,0.14033567,32418.0,32417.0,6.79733666]
[1609745483532,0.14033567,32418.0,32417.0,1.33974287]
[1609745483732,0.14033567,32418.0,32417.0,0.64876287]
[1609745483933,1.14033567,32418.0,32414.0,1.19091805]
[1609745484132,1.14033567,32418.0,32414.0,0.54620805]
[1609745484333,1.14033567,32418.0,32410.0,2.64408866]
[1609745484733,0.14033567,32411.0,32410.0,2.64408866]
[1609745484933,0.14033567,32411.0,32372.0,3.4026127]
[1609745485634,0.25909567,32411.0,32331.0,0.1771]
[1609745485833,1.0,32410.0,32331.0,0.1771]
[1609745486032,1.2844,32410.0,32331.0,0.1771]
[1609745486233,1.0,32410.0,32331.0,0.1771]
[1609745486433,0.2891,32409.0,32331.0,0.1771]
[1609745486632,5.078,32385.0,32331.0,0.1771]
[1609745486832,0.14033567,32383.0,32331.0,0.1771]
[1609745488234,0.14033567,32383.0,32335.0,0.0042]
[1609745488432,0.14033567,32383.0,32335.0,0.1424]
[1609745488732,0.14033567,32336.0,32335.0,0.1424]
[1609745488933,5.18803567,32336.0,32335.0,0.1424]
[1609745489432,0.15321,32347.0,32335.0,0.1424]
[1609745490133,4.9023,32378.0,32335.0,0.1424]
[1609745490833,4.9023,32378.0,32346.0,0.14033567]
[1609745491032,4.9023,32378.0,32346.0,0.12467]
[1609745492734,0.11361,32385.0,32351.0,0.14033567]
[1609745493134,5.0807,32404.0,32351.0,0.14033567]
[1609745493337,5.2147,32404.0,32346.0,0.12467]
[1609745493933,1.0,32367.0,32350.0,1.0]
[1609745494836,0.14033567,32351.0,32350.0,1.0]
[1609745495839,0.14033567,32351.0,32346.0,0.12467]
[1609745496238,0.14033567,32351.0,32335.0,0.1424]
[1609745496839,0.1344,32354.0,32335.0,0.1424]
[1609745496840,0.14033567,32336.0,32335.0,0.1424]
[1609745497142,0.1344,32354.0,32335.0,0.1424]
[1609745498140,0.1344,32354.0,32335.0,0.0042]
[1609745498540,0.1344,32354.0,32320.0,0.09711]
[1609745498741,0.14033567,32321.0,32320.0,0.09711]
[1609745499944,1.14033567,32321.0,32320.0,0.09711]
[1609745500143,1.14033567,32321.0,32296.0,1.0]
[1609745500745,0.14033567,32297.0,32296.0,1.0]
[1609745501345,0.14033567,32297.0,32296.0,0.8506]
[1609745501747,6.14033567,32297.0,32277.0,0.15503]
[1609745502145,4.2037,32292.0,32260.0,1.0]
[1609745502545,4.34781,32292.0,32260.0,1.0]
[1609745502745,0.14033567,32261.0,32260.0,1.0]
[1609745503145,0.13721,32285.0,32260.0,1.0]
[1609745503348,0.13721,32285.0,32260.0,1.15931]
[1609745503750,0.13721,32285.0,32260.0,0.15931]
[1609745504149,0.15951,32302.0,32260.0,0.15931]
[1609745504349,0.698,32301.0,32260.0,0.15931]
[1609745504748,0.14033567,32261.0,32260.0,0.15931]
[1609745505149,0.15743,32288.0,32260.0,0.15931]
[1609745505751,0.15743,32288.0,32275.0,1.0]
[1609745505952,1.0,32291.0,32275.0,1.14415]
[1609745506851,0.14033567,32276.0,32275.0,1.14415]
[1609745507255,1.0,32291.0,32275.0,1.14415]
[1609745507652,1.0,32294.0,32277.0,1.0]
[1609745508852,0.14033567,32278.0,32277.0,1.0]
[1609745509754,0.14033567,32278.0,32260.0,0.15931]
[1609745509953,0.14033567,32278.0,32256.0,0.14033567]
[1609745510858,0.14033567,32270.0,32266.0,0.14033567]
[1609745511056,0.14033567,32270.0,32215.0,1.0]
[1609745511656,0.14033567,32270.0,32214.0,1.0]
[1609745513157,0.11806,32271.0,32224.0,0.10711]
[1609745513359,0.11806,32271.0,32224.0,3.83081]
[1609745514360,0.10273,32284.0,32224.0,3.83081]
[1609745514560,0.277,32297.0,32224.0,3.83081]
[1609745514760,0.5599,32291.0,32224.0,3.83081]
[1609745514962,0.70828,32291.0,32224.0,3.83081]
[1609745516960,0.70828,32291.0,32255.0,0.14033567]
[1609745517160,0.70828,32291.0,32255.0,0.29116567]
[1609745517561,0.70828,32291.0,32224.0,3.83081]
[1609745517760,1.0,32256.0,32255.0,0.10993]
[1609745518161,5.2176,32256.0,32255.0,0.10993]
[1609745518661,5.2176,32256.0,32235.0,1.0]
[1609745518860,0.14033567,32236.0,32235.0,1.0]
[1609745519261,0.11596,32253.0,32235.0,1.0]
[1609745519462,0.11596,32253.0,32235.0,1.11326]
[1609745519662,1.0,32246.0,32235.0,0.11326]
[1609745520062,1.12016,32246.0,32230.0,1.0]
[1609745520962,0.14033567,32234.0,32232.0,0.14033567]
[1609745521462,1.12016,32246.0,32232.0,0.14033567]
[1609745521863,1.0,32323.0,32232.0,0.14033567]
[1609745522262,1.0,32323.0,32239.0,3.9829]
[1609745522462,1.0,32323.0,32239.0,4.08607]
[1609745522863,1.0,32323.0,32280.0,0.14033567]
[1609745522864,0.14033567,32283.0,32280.0,0.14033567]
[1609745523162,0.14033567,32283.0,32267.0,3.8091]
[1609745524364,0.24282567,32283.0,32267.0,3.8091]
[1609745524564,0.10249,32283.0,32267.0,3.8091]
[1609745524764,0.10249,32283.0,32239.0,0.10317]
[1609745524963,0.14033567,32254.0,32244.0,0.14033567]
[1609745525166,0.14033567,32254.0,32239.0,0.10317]
[1609745526767,0.14033567,32254.0,32191.0,0.1771]
[1609745526970,0.14033567,32235.0,32195.0,4.5853]
[1609745527667,0.14033567,32235.0,32230.0,1.0]
[1609745528467,1.0,32246.0,32230.0,1.0]
[1609745528868,1.0,32246.0,32245.0,0.14033567]
[1609745529668,0.12204,32254.0,32245.0,0.14033567]
[1609745530271,4.2181,32284.0,32245.0,0.14033567]
[1609745530569,1.0,32330.0,32245.0,0.14033567]
[1609745530769,4.8993,32310.0,32245.0,0.14033567]
[1609745530969,4.8993,32310.0,32241.0,0.12554]
[1609745531169,0.13381,32275.0,32241.0,0.12554]
[1609745532372,4.8993,32310.0,32241.0,0.12554]
[1609745532870,0.14033567,32282.0,32265.0,0.14033567]
[1609745533070,0.14033567,32282.0,32265.0,0.27842567]
[1609745533671,4.8993,32310.0,32265.0,0.27842567]
[1609745533871,4.8993,32310.0,32265.0,0.13809]
[1609745534072,1.0,32322.0,32281.0,6.0]
[1609745534473,1.0,32322.0,32281.0,6.12943]
[1609745535271,1.0,32322.0,32317.0,0.14033567]
[1609745536072,4.7478,32364.0,32317.0,0.14033567]
[1609745536273,2.05539315,32372.0,32317.0,0.14033567]
[1609745536874,2.07642661,32370.0,32317.0,0.14033567]
[1609745537075,2.22496661,32370.0,32317.0,0.14033567]
[1609745537273,2.22496661,32370.0,32310.0,0.15661]
[1609745537474,0.14033567,32318.0,32311.0,0.14033567]
[1609745537874,0.14033567,32318.0,32310.0,0.15661]
[1609745539077,0.13664,32327.0,32310.0,0.15661]
[1609745539277,0.14033567,32323.0,32322.0,0.14033567]
[1609745539477,0.14033567,32323.0,32310.0,0.15661]
[1609745541381,0.14033567,32311.0,32310.0,0.15661]
[1609745541582,0.14033567,32311.0,32296.0,0.14109]
[1609745541782,0.14033567,32311.0,32274.0,5.0048]
[1609745543184,0.15456,32314.0,32274.0,5.0048]
[1609745543385,0.14033567,32299.0,32293.0,0.14033567]
[1609745543585,0.15456,32314.0,32274.0,5.0048]
[1609745543987,0.15456,32314.0,32301.0,1.0]
[1609745545489,0.14033567,32302.0,32301.0,1.0]
[1609745545691,0.28093567,32302.0,32301.0,1.0]
[1609745546089,0.28093567,32302.0,32291.0,1.0]
[1609745547389,0.14033567,32292.0,32291.0,1.0]
[1609745547992,0.14033567,32292.0,32274.0,0.15008]
[1609745548193,0.14033567,32292.0,32283.0,1.0]
[1609745548795,0.14047,32293.0,32283.0,1.0]
[1609745549395,0.14033567,32284.0,32283.0,1.14033567]
[1609745549597,0.14047,32293.0,32283.0,1.14033567]
[1609745549996,0.14047,32293.0,32283.0,0.14033567]
[1609745550695,0.1406,32302.0,32283.0,0.29984567]
[1609745550896,0.15456,32314.0,32283.0,0.29984567]
[1609745551097,2.12895008,32346.0,32283.0,0.29984567]
[1609745551497,0.14033567,32295.0,32293.0,0.14033567]
[1609745551698,0.10042,32303.0,32293.0,0.14033567]
[1609745552097,0.10042,32303.0,32294.0,1.0]